[Event "GER-ch Youth-U12 2022"]
[Site "Willingen"]
[Date "2022.06.07"]
[Round "4.10"]
[White "Wartenberg, Alexander"]
[Black "Mandalka, Justus"]
[Result "1-0"]
[ECO "B38"]
[WhiteElo "1682"]
[BlackElo "1402"]
[Annotator "NA RC COMBH"]
[PlyCount "135"]
[EventDate "2022.06.05"]
[EventType "swiss"]
[EventRounds "9"]
[EventCountry "GER"]
[SourceTitle "playchess.com"]
[Source "ChessBase"]
[SourceQuality "1"]
[TimeControl "40/4500+30:900+30"]

1. e4 {[%emt 0:00:00]} c5 {[%emt 0:00:00]} 2. Nf3 {[%emt 0:00:00]} Nc6 {[%emt 0:00:00]} 3. d4 {[%emt 0:00:00]} cxd4 {[%emt 0:00:00]} 4. Nxd4 {[%emt 0:00:00]} g6 {[%emt 0:00:00]} 5. c4 {[%emt 0:00:00]} Bg7 {[%emt 0:00:00]} 6. Be3 {[%emt 0:00:00]} Nf6 {[%emt 0:00:00]} 7. Nc3 {[%emt 0:00:00]} d6 {[%emt 0:00:00]} 8. Be2 {[%emt 0:00:00]} O-O {[%emt 0:00:00]} 9. O-O {[%emt 0:00:00]} Bd7 {[%emt 0:00:00]} 10. f3 {[%emt 0:00:00]} Nxd4 {[%emt 0:00:00]} 11. Bxd4 {[%emt 0:00:00]} a5 {[%emt 0:00:00]} 12. Nd5 {[%emt 0:00:00]} Nxd5 {[%emt 0:00:00]} 13. cxd5 {[%emt 0:00:00]} Rc8 {[%emt 0:00:00]} 14. Qd2 {[%emt 0:00:00]} f5 {[%emt 0:05:34]} 15. Bxg7 {[%emt 0:02:15]} Kxg7 {[%emt 0:00:12]} 16. Qd4+ {[%emt 0:00:52]} Kg8 {[%emt 0:00:21]} 17. Bd3 {[%emt 0:09:18]} Rc5 {[%emt 0:02:49]} 18. Rac1 {[%emt 0:05:01]} Qc7 {[%emt 0:02:49]} 19. Rxc5 {[%emt 0:01:33]} dxc5 {[%emt 0:00:12]} 20. Rc1 {[%emt 0:02:48]} Rc8 {[%emt 0:00:28]} 21. Qc4 {[%emt 0:00:21]} b5 {[%emt 0:01:14]} 22. d6+ {[%emt 0:06:40]} bxc4 {[%emt 0:00:10]} 23. Bxc4+ {[%emt 0:00:07]} e6 {[%emt 0:00:27]} 24. dxc7 {[%emt 0:00:13]} Rxc7 {[%emt 0:00:04]} 25. e5 {[%emt 0:00:50]} Kf7 {[%emt 0:01:29]} 26. Rd1 {[%emt 0:04:06]} Ke7 {[%emt 0:00:28]} 27. f4 {[%emt 0:02:38]} Rb7 {[%emt 0:00:46]} 28. b3 {[%emt 0:01:17]} Rb6 {[%emt 0:00:44]} 29. g3 {[%emt 0:00:40]} a4 {[%emt 0:00:14]} 30. Kf2 {[%emt 0:08:52]} axb3 {[%emt 0:01:42]} 31. axb3 {[%emt 0:03:36]} Rb7 {[%emt 0:02:32]} 32. Ra1 {[%emt 0:03:28]} Bb5 {[%emt 0:02:28]} 33. Ra5 {[%emt 0:00:45]} Bxc4 {[%emt 0:00:36]} 34. bxc4 {[%emt 0:01:05]} Rc7 {[%emt 0:01:24]} 35. Ke3 {[%emt 0:00:26]} Kd7 {[%emt 0:00:18]} 36. Kd3 {[%emt 0:00:12]} Kc6 {[%emt 0:03:39]} 37. Ra6+ {[%emt 0:00:41]} Kd7 {[%emt 0:00:05]} 38. Rd6+ {[%emt 0:01:31]} Ke7 {[%emt 0:00:05]} 39. Kc3 {[%emt 0:00:06]} h6 {[%emt 0:00:14]} 40. Rb6 {[%emt 0:00:41]} Kd7 {[%emt 0:00:53]} 41. Kb3 {[%emt 0:16:19]} Ra7 {[%emt 0:15:24]} 42. Rd6+ {[%emt 0:00:21]} Ke7 {[%emt 0:00:06]} 43. Rc6 {[%emt 0:00:21]} Ra5 {[%emt 0:00:07]} 44. Rc7+ {[%emt 0:00:19]} Kf8 {[%emt 0:00:13]} 45. Rb7 {[%emt 0:01:14]} Ra6 {[%emt 0:02:50]} 46. Rb5 {[%emt 0:00:22]} Rc6 {[%emt 0:00:23]} 47. Ka4 {[%emt 0:00:09]} g5 {[%emt 0:06:51]} 48. Ka5 {[%emt 0:00:19]} gxf4 {[%emt 0:00:13]} 49. gxf4 {[%emt 0:00:06]} Ke7 {[%emt 0:00:52]} 50. Rb7+ {[%emt 0:01:55]} Kf8 {[%emt 0:01:32]} 51. Kb5 {[%emt 0:01:44]} Rc8 {[%emt 0:00:11]} 52. Rb6 {[%emt 0:00:16]} Kf7 {[%emt 0:00:28]} 53. Rc6 {[%emt 0:00:20]} Rg8 {[%emt 0:01:24]} 54. Rc7+ {[%emt 0:00:18]} Kg6 {[%emt 0:00:21]} 55. Kxc5 {[%emt 0:00:43]} Kh5 {[%emt 0:00:06]} 56. Kd6 {[%emt 0:00:40]} Kg4 {[%emt 0:00:45]} 57. c5 {[%emt 0:00:14]} Kxf4 {[%emt 0:00:06]} 58. c6 {[%emt 0:00:13]} Ke4 {[%emt 0:00:18]} 59. Rh7 {[%emt 0:00:41]} f4 {[%emt 0:00:16]} 60. Rxh6 {[%emt 0:01:35]} f3 {[%emt 0:00:29]} 61. Rf6 {[%emt 0:00:30]} Ke3 {[%emt 0:03:22]} 62. c7 {[%emt 0:01:05]} f2 {[%emt 0:00:50]} 63. Kd7 {[%emt 0:00:13]} Rg7+ {[%emt 0:00:14]} 64. Kc8 {[%emt 0:00:05]} Rg5 {[%emt 0:02:21]} 65. Rxf2 {[%emt 0:04:32]} Kxf2 {[%emt 0:00:08]} 66. Kb8 {[%emt 0:00:09]} Rg8+ {[%emt 0:00:46]} 67. c8=Q {[%emt 0:00:14]} Rxc8+ {[%emt 0:00:02]} 68. Kxc8 {[%emt 0:00:05]} 1-0

[Event "GER-ch Youth-U12 2022"]
[Site "Willingen"]
[Date "2022.06.07"]
[Round "4.11"]
[White "Mohammadzadeh, Daris"]
[Black "Lu, Yunong Elias"]
[Result "0-1"]
[ECO "C47"]
[WhiteElo "1371"]
[BlackElo "1671"]
[Annotator "NA RC COMBH"]
[PlyCount "104"]
[EventDate "2022.06.05"]
[EventType "swiss"]
[EventRounds "9"]
[EventCountry "GER"]
[SourceTitle "playchess.com"]
[Source "ChessBase"]
[SourceQuality "1"]
[TimeControl "40/4500+30:900+30"]

1. e4 {[%emt 0:00:00]} e5 {[%emt 0:00:00]} 2. Nf3 {[%emt 0:00:00]} Nc6 {[%emt 0:00:00]} 3. Nc3 {[%emt 0:00:00]} Nf6 {[%emt 0:00:00]} 4. a3 {[%emt 0:00:00]} d5 {[%emt 0:00:00]} 5. Bb5 {[%emt 0:00:00]} Nxe4 {[%emt 0:00:00]} 6. Qe2 {[%emt 0:00:00]} Qd6 {[%emt 0:00:00]} 7. Nxe4 {[%emt 0:00:00]} dxe4 {[%emt 0:00:00]} 8. Qxe4 {[%emt 0:00:00]} Bd7 {[%emt 0:00:00]} 9. d3 {[%emt 0:00:00]} a6 {[%emt 0:00:00]} 10. Bc4 {[%emt 0:00:00]} Be7 {[%emt 0:00:00]} 11. Bd2 {[%emt 0:03:08]} h6 {[%emt 0:02:48]} 12. Bc3 {[%emt 0:06:17]} f5 {[%emt 0:14:20]} 13. Qd5 {[%emt 0:16:14]} O-O-O {[%emt 0:14:06]} 14. Nxe5 {[%emt 0:09:20]} Nxe5 {[%emt 0:03:17]} 15. Qxe5 {[%emt 0:03:46]} Qb6 {[%emt 0:07:52]} 16. O-O-O {[%emt 0:07:54]} Bf6 {[%emt 0:10:05]} 17. Qe1 {[%emt 0:01:05]} Rhe8 {[%emt 0:03:27]} 18. Qd2 {[%emt 0:02:46]} Bxc3 {[%emt 0:03:22]} 19. Qxc3 {[%emt 0:04:11]} Qxf2 {[%emt 0:03:15]} 20. Qxg7 {[%emt 0:02:52]} Re2 {[%emt 0:02:52]} 21. Bb3 {[%emt 0:01:11]} Qxg2 {[%emt 0:01:24]} 22. Qxh6 {[%emt 0:04:07]} Rde8 {[%emt 0:01:36]} 23. Qf4 {[%emt 0:04:47]} Kb8 {[%emt 0:04:39]} 24. Qg3 {[%emt 0:04:54]} Qc6 {[%emt 0:03:32]} 25. Rhe1 {[%emt 0:01:55]} Qh6+ {[%emt 0:00:30]} 26. Kb1 {[%emt 0:00:52]} Rxe1 {[%emt 0:00:59]} 27. Rxe1 {[%emt 0:00:28]} Rxe1+ {[%emt 0:00:38]} 28. Qxe1 {[%emt 0:00:03]} Qxh2 {[%emt 0:00:20]} 29. Qe7 {[%emt 0:01:05]} Bc8 {[%emt 0:00:12]} 30. Qf8 {[%emt 0:01:02]} Qe2 {[%emt 0:01:55]} 31. Bd5 {[%emt 0:02:40]} Qe1+ {[%emt 0:01:53]} 32. Ka2 {[%emt 0:00:06]} Qe5 {[%emt 0:00:05]} 33. Bc4 {[%emt 0:03:33]} f4 {[%emt 0:02:29]} 34. d4 {[%emt 0:01:32]} Qe4 {[%emt 0:01:57]} 35. Qg8 {[%emt 0:02:06]} f3 {[%emt 0:01:40]} 36. Bd5 {[%emt 0:00:28]} Qe3 {[%emt 0:01:12]} 37. Qg3 {[%emt 0:00:49]} Be6 {[%emt 0:01:46]} 38. c4 {[%emt 0:02:10]} Bxd5 {[%emt 0:00:06]} 39. cxd5 {[%emt 0:00:02]} Qe2 {[%emt 0:01:09]} 40. Qg8+ {[%emt 0:00:14]} Ka7 {[%emt 0:00:06]} 41. Qf8 {[%emt 0:15:07]} Qc4+ {[%emt 0:00:00]} 42. Kb1 {[%emt 0:00:00]} Qxd5 {[%emt 0:00:00]} 43. Qf4 {[%emt 0:00:00]} a5 {[%emt 0:00:00]} 44. Qe3 {[%emt 0:00:00]} Qf5+ {[%emt 0:00:00]} 45. Ka2 {[%emt 0:00:00]} f2 {[%emt 0:00:00]} 46. d5+ {[%emt 0:00:00]} b6 {[%emt 0:00:00]} 47. Qg3 {[%emt 0:00:00]} Qxd5+ {[%emt 0:00:00]} 48. b3 {[%emt 0:00:00]} Qd2+ {[%emt 0:00:00]} 49. Kb1 {[%emt 0:00:00]} f1=Q+ {[%emt 0:00:00]} 50. Qe1 {[%emt 0:00:00]} Qfd3+ {[%emt 0:00:00]} 51. Ka1 {[%emt 0:00:00]} Q3c3+ {[%emt 0:00:00]} 52. Kb1 {[%emt 0:00:00]} Qcb2# {[%emt 0:00:27]} 0-1

[Event "GER-ch Youth-U12 2022"]
[Site "Willingen"]
[Date "2022.06.07"]
[Round "4.12"]
[White "Seth, Aakrit"]
[Black "Freude, Paul"]
[Result "0-1"]
[ECO "D02"]
[WhiteElo "1435"]
[BlackElo "1415"]
[Annotator "NA RC COMBH"]
[PlyCount "86"]
[EventDate "2022.06.05"]
[EventType "swiss"]
[EventRounds "9"]
[EventCountry "GER"]
[SourceTitle "playchess.com"]
[Source "ChessBase"]
[SourceQuality "1"]
[TimeControl "40/4500+30:900+30"]

1. d4 {[%emt 0:00:00]} d5 {[%emt 0:00:00]} 2. Bf4 {[%emt 0:00:00]} Nf6 {[%emt 0:00:00]} 3. e3 {[%emt 0:00:00]} c5 {[%emt 0:00:00]} 4. c3 {[%emt 0:00:00]} Nc6 {[%emt 0:00:00]} 5. Nf3 {[%emt 0:00:00]} Qb6 {[%emt 0:00:00]} 6. Qc2 {[%emt 0:00:00]} Bf5 {[%emt 0:00:00]} 7. dxc5 {[%emt 0:00:00]} Bxc2 {[%emt 0:00:00]} 8. cxb6 {[%emt 0:00:00]} axb6 {[%emt 0:00:00]} 9. Nbd2 {[%emt 0:00:00]} h6 {[%emt 0:00:00]} 10. Bb5 {[%emt 0:00:00]} Nd7 {[%emt 0:00:00]} 11. O-O {[%emt 0:00:00]} g5 {[%emt 0:00:00]} 12. Bg3 {[%emt 0:00:00]} Bg7 {[%emt 0:00:00]} 13. Nd4 {[%emt 0:00:00]} Nxd4 {[%emt 0:03:21]} 14. exd4 {[%emt 0:00:00]} Ba4 {[%emt 0:01:38]} 15. Bd3 {[%emt 0:00:00]} O-O {[%emt 0:00:32]} 16. Rfe1 {[%emt 0:00:00]} Rfe8 {[%emt 0:00:36]} 17. Re2 {[%emt 0:02:55]} Bc6 {[%emt 0:02:46]} 18. a3 {[%emt 0:02:57]} e5 {[%emt 0:05:52]} 19. dxe5 {[%emt 0:26:51]} Bxe5 {[%emt 0:01:41]} 20. Rae1 {[%emt 0:02:45]} Nc5 {[%emt 0:02:23]} 21. Rxe5 {[%emt 0:13:45]} Rxe5 {[%emt 0:00:37]} 22. Bh7+ {[%emt 0:03:04]} Kxh7 {[%emt 0:00:09]} 23. Rxe5 {[%emt 0:00:11]} Nd3 {[%emt 0:01:10]} 24. Re7 {[%emt 0:07:22]} Kg8 {[%emt 0:02:15]} 25. Bd6 {[%emt 0:03:43]} Nxb2 {[%emt 0:00:43]} 26. Kf1 {[%emt 0:00:49]} Nd3 {[%emt 0:02:01]} 27. c4 {[%emt 0:04:27]} Nc5 {[%emt 0:07:01]} 28. cxd5 {[%emt 0:05:36]} Bxd5 {[%emt 0:04:24]} 29. Re3 {[%emt 0:02:10]} Be6 {[%emt 0:08:08]} 30. Bc7 {[%emt 0:00:54]} b5 {[%emt 0:00:52]} 31. Re5 {[%emt 0:01:27]} b6 {[%emt 0:05:56]} 32. Re3 {[%emt 0:05:06]} Nd7 {[%emt 0:02:29]} 33. Ne4 {[%emt 0:01:30]} Rc8 {[%emt 0:01:41]} 34. Bd6 {[%emt 0:01:26]} Bc4+ {[%emt 0:02:34]} 35. Ke1 {[%emt 0:00:22]} f5 {[%emt 0:00:56]} 36. Nd2 {[%emt 0:00:48]} Nf6 {[%emt 0:08:47]} 37. Nxc4 {[%emt 0:02:12]} bxc4 {[%emt 0:01:04]} 38. Be5 {[%emt 0:01:11]} Nd5 {[%emt 0:02:03]} 39. Re2 {[%emt 0:00:53]} c3 {[%emt 0:01:14]} 40. Kd1 {[%emt 0:00:09]} Ra8 {[%emt 0:00:54]} 41. Bd6 {[%emt 0:15:12]} Rd8 {[%emt 0:15:31]} 42. Re6 {[%emt 0:00:00]} Nf4 {[%emt 0:00:00]} 43. Rxh6 {[%emt 0:00:00]} Kg7 {[%emt 0:00:22]} 0-1

[Event "GER-ch Youth-U12 2022"]
[Site "Willingen"]
[Date "2022.06.07"]
[Round "4.13"]
[White "Wylie, Leonard"]
[Black "Herrmann, Jakob"]
[Result "1-0"]
[ECO "B12"]
[WhiteElo "1733"]
[BlackElo "1737"]
[Annotator "NA RC COMBH"]
[PlyCount "69"]
[EventDate "2022.06.05"]
[EventType "swiss"]
[EventRounds "9"]
[EventCountry "GER"]
[SourceTitle "playchess.com"]
[Source "ChessBase"]
[SourceQuality "1"]
[TimeControl "40/4500+30:900+30"]

1. e4 {[%emt 0:00:00]} c6 {[%emt 0:00:00]} 2. d4 {[%emt 0:00:00]} d5 {[%emt 0:00:00]} 3. e5 {[%emt 0:00:00]} Bf5 {[%emt 0:00:00]} 4. h4 {[%emt 0:00:00]} Qb6 {[%emt 0:00:00]} 5. Nc3 {[%emt 0:00:00]} Na6 {[%emt 0:00:00]} 6. Bxa6 {[%emt 0:00:00]} Qxa6 {[%emt 0:00:00]} 7. Nge2 {[%emt 0:00:00]} Bg4 {[%emt 0:00:00]} 8. f3 {[%emt 0:00:00]} Bd7 {[%emt 0:00:00]} 9. Bg5 {[%emt 0:00:00]} e6 {[%emt 0:00:00]} 10. Qd2 {[%emt 0:00:00]} c5 {[%emt 0:02:16]} 11. h5 {[%emt 0:00:00]} h6 {[%emt 0:05:43]} 12. Bh4 {[%emt 0:02:01]} c4 {[%emt 0:04:32]} 13. f4 {[%emt 0:02:30]} Ne7 {[%emt 0:01:13]} 14. g4 {[%emt 0:00:31]} b5 {[%emt 0:06:24]} 15. f5 {[%emt 0:04:03]} b4 {[%emt 0:00:39]} 16. fxe6 {[%emt 0:00:25]} Bxe6 {[%emt 0:05:15]} 17. Nd1 {[%emt 0:03:43]} Bxg4 {[%emt 0:01:24]} 18. Ne3 {[%emt 0:01:44]} Bxe2 {[%emt 0:10:31]} 19. Qxe2 {[%emt 0:05:15]} Qe6 {[%emt 0:03:35]} 20. Qg2 {[%emt 0:04:52]} O-O-O {[%emt 0:07:16]} 21. Kd2 {[%emt 0:10:20]} Kb8 {[%emt 0:07:29]} 22. c3 {[%emt 0:03:33]} Rg8 {[%emt 0:08:52]} 23. cxb4 {[%emt 0:02:22]} Rd7 {[%emt 0:07:10]} 24. a3 {[%emt 0:02:52]} Nf5 {[%emt 0:00:59]} 25. Nxf5 {[%emt 0:01:49]} Qxf5 {[%emt 0:00:07]} 26. Qh3 {[%emt 0:01:14]} Qf4+ {[%emt 0:03:17]} 27. Kc3 {[%emt 0:04:40]} Qe4 {[%emt 0:05:01]} 28. Rae1 {[%emt 0:03:05]} Qh7 {[%emt 0:00:27]} 29. e6 {[%emt 0:00:51]} fxe6 {[%emt 0:00:15]} 30. Rxe6 {[%emt 0:00:31]} Bd6 {[%emt 0:02:15]} 31. Rg6 {[%emt 0:02:34]} Kc7 {[%emt 0:00:11]} 32. Re1 {[%emt 0:06:03]} Rf8 {[%emt 0:01:00]} 33. Ree6 {[%emt 0:01:16]} Qg8 {[%emt 0:02:29]} 34. Rxd6 {[%emt 0:03:33]} Rxd6 {[%emt 0:00:11]} 35. Qg3 {[%emt 0:00:38]} 1-0

[Event "GER-ch Youth-U12 2022"]
[Site "Willingen"]
[Date "2022.06.07"]
[Round "4.14"]
[White "Büchel, David"]
[Black "Nemitz, Alfred"]
[Result "0-1"]
[ECO "C54"]
[WhiteElo "1527"]
[BlackElo "1611"]
[Annotator "NA RC COMBH"]
[PlyCount "116"]
[EventDate "2022.06.05"]
[EventType "swiss"]
[EventRounds "9"]
[EventCountry "GER"]
[SourceTitle "playchess.com"]
[Source "ChessBase"]
[SourceQuality "1"]
[TimeControl "40/4500+30:900+30"]

1. e4 {[%emt 0:00:00]} e5 {[%emt 0:00:00]} 2. Bc4 {[%emt 0:00:00]} Nc6 {[%emt 0:00:00]} 3. d3 {[%emt 0:00:00]} Bc5 {[%emt 0:00:00]} 4. Nf3 {[%emt 0:00:00]} Nf6 {[%emt 0:00:00]} 5. c3 {[%emt 0:00:00]} a6 {[%emt 0:00:00]} 6. O-O {[%emt 0:00:00]} d6 {[%emt 0:00:00]} 7. Bb3 {[%emt 0:00:00]} h6 {[%emt 0:00:00]} 8. Nbd2 {[%emt 0:00:00]} O-O {[%emt 0:00:00]} 9. Re1 {[%emt 0:00:00]} Be6 {[%emt 0:03:17]} 10. Bc2 {[%emt 0:00:00]} Ng4 {[%emt 0:08:25]} 11. Re2 {[%emt 0:00:34]} f5 {[%emt 0:17:49]} 12. h3 {[%emt 0:10:07]} Bxf2+ {[%emt 0:12:26]} 13. Rxf2 {[%emt 0:12:53]} Ne3 {[%emt 0:00:05]} 14. Qe2 {[%emt 0:00:22]} Nxc2 {[%emt 0:00:06]} 15. Rb1 {[%emt 0:01:27]} f4 {[%emt 0:04:49]} 16. Nb3 {[%emt 0:09:29]} Ne3 {[%emt 0:02:21]} 17. Bxe3 {[%emt 0:03:43]} fxe3 {[%emt 0:00:04]} 18. Qxe3 {[%emt 0:00:42]} a5 {[%emt 0:00:14]} 19. Rbf1 {[%emt 0:02:43]} a4 {[%emt 0:01:06]} 20. Nc1 {[%emt 0:01:23]} Qe7 {[%emt 0:01:04]} 21. d4 {[%emt 0:02:52]} Bc4 {[%emt 0:01:03]} 22. Rd1 {[%emt 0:01:01]} exd4 {[%emt 0:01:47]} 23. cxd4 {[%emt 0:01:06]} Rae8 {[%emt 0:01:08]} 24. d5 {[%emt 0:02:15]} Ne5 {[%emt 0:02:32]} 25. Nd4 {[%emt 0:01:58]} Rxf2 {[%emt 0:06:41]} 26. Qxf2 {[%emt 0:00:54]} Ba6 {[%emt 0:08:06]} 27. Ne6 {[%emt 0:03:04]} c5 {[%emt 0:00:46]} 28. Rd2 {[%emt 0:06:57]} b5 {[%emt 0:02:36]} 29. Ne2 {[%emt 0:03:12]} Bc8 {[%emt 0:01:52]} 30. N2f4 {[%emt 0:09:28]} Kh8 {[%emt 0:00:52]} 31. Qf1 {[%emt 0:06:22]} g5 {[%emt 0:03:20]} 32. Nd3 {[%emt 0:01:40]} Nxd3 {[%emt 0:01:41]} 33. Rxd3 {[%emt 0:01:18]} Bxe6 {[%emt 0:00:24]} 34. dxe6 {[%emt 0:00:08]} Qxe6 {[%emt 0:02:07]} 35. Rf3 {[%emt 0:00:47]} Kg7 {[%emt 0:01:59]} 36. Qxb5 {[%emt 0:01:09]} Qxe4 {[%emt 0:00:58]} 37. Qd7+ {[%emt 0:00:27]} Qe7 {[%emt 0:01:24]} 38. Qxa4 {[%emt 0:01:07]} Qe1+ {[%emt 0:00:07]} 39. Kh2 {[%emt 0:00:20]} Qe5+ {[%emt 0:00:10]} 40. Kg1 {[%emt 0:00:41]} Re7 {[%emt 0:00:35]} 41. Qb3 {[%emt 0:16:37]} d5 {[%emt 0:16:00]} 42. Qc2 {[%emt 0:01:56]} Qd4+ {[%emt 0:00:44]} 43. Kh2 {[%emt 0:00:43]} Re4 {[%emt 0:00:00]} 44. Qc3 {[%emt 0:00:00]} c4 {[%emt 0:00:00]} 45. Kg3 {[%emt 0:00:00]} h5 {[%emt 0:00:00]} 46. Qxd4+ {[%emt 0:00:00]} Rxd4 {[%emt 0:00:00]} 47. b3 {[%emt 0:00:00]} h4+ {[%emt 0:00:00]} 48. Kh2 {[%emt 0:00:00]} Rd3 {[%emt 0:00:00]} 49. Rf1 {[%emt 0:02:07]} c3 {[%emt 0:00:00]} 50. b4 {[%emt 0:01:09]} Rd4 {[%emt 0:00:00]} 51. Rc1 {[%emt 0:00:42]} Rc4 {[%emt 0:00:00]} 52. Kg1 {[%emt 0:00:10]} d4 {[%emt 0:00:00]} 53. Kf2 {[%emt 0:00:39]} d3 {[%emt 0:00:00]} 54. Ke3 {[%emt 0:00:36]} d2 {[%emt 0:00:00]} 55. Rf1 {[%emt 0:01:44]} Rd4 {[%emt 0:00:00]} 56. Kxd4 {[%emt 0:01:12]} c2 {[%emt 0:00:00]} 57. a4 {[%emt 0:00:19]} d1=Q+ {[%emt 0:00:00]} 58. Kc5 {[%emt 0:00:08]} c1=Q+ {[%emt 0:00:00]} 0-1

[Event "GER-ch Youth-U12 2022"]
[Site "Willingen"]
[Date "2022.06.07"]
[Round "4.15"]
[White "Bangert, Jonas"]
[Black "Skembris, Simon Max"]
[Result "0-1"]
[ECO "A38"]
[WhiteElo "1483"]
[BlackElo "1413"]
[Annotator "NA RC COMBH"]
[PlyCount "52"]
[EventDate "2022.06.05"]
[EventType "swiss"]
[EventRounds "9"]
[EventCountry "GER"]
[SourceTitle "playchess.com"]
[Source "ChessBase"]
[SourceQuality "1"]
[TimeControl "40/4500+30:900+30"]

1. c4 {[%emt 0:00:00]} c5 {[%emt 0:00:00]} 2. g3 {[%emt 0:00:00]} g6 {[%emt 0:00:00]} 3. Bg2 {[%emt 0:00:00]} Bg7 {[%emt 0:00:00]} 4. Nf3 {[%emt 0:00:00]} Nc6 {[%emt 0:00:00]} 5. Nc3 {[%emt 0:00:00]} Nf6 {[%emt 0:00:00]} 6. O-O {[%emt 0:00:00]} d6 {[%emt 0:00:00]} 7. d3 {[%emt 0:00:00]} O-O {[%emt 0:00:00]} 8. a3 {[%emt 0:00:00]} Be6 {[%emt 0:00:00]} 9. Rb1 {[%emt 0:00:00]} Rc8 {[%emt 0:00:00]} 10. Bd2 {[%emt 0:00:00]} h6 {[%emt 0:00:00]} 11. b4 {[%emt 0:26:48]} b6 {[%emt 0:00:00]} 12. b5 {[%emt 0:03:10]} Nb8 {[%emt 0:00:00]} 13. Qa4 {[%emt 0:07:18]} d5 {[%emt 0:02:10]} 14. h4 {[%emt 0:12:40]} d4 {[%emt 0:02:39]} 15. Nd1 {[%emt 0:03:36]} Nbd7 {[%emt 0:06:03]} 16. Ne1 {[%emt 0:10:39]} Bg4 {[%emt 0:06:04]} 17. f3 {[%emt 0:01:18]} Be6 {[%emt 0:03:48]} 18. g4 {[%emt 0:05:01]} Qc7 {[%emt 0:01:55]} 19. Nf2 {[%emt 0:01:37]} Qg3 {[%emt 0:03:36]} 20. Nh3 {[%emt 0:06:11]} Qxh4 {[%emt 0:07:04]} 21. Nc2 {[%emt 0:00:34]} Nh5 {[%emt 0:03:21]} 22. Be1 {[%emt 0:03:32]} Ng3 {[%emt 0:00:40]} 23. Nf4 {[%emt 0:03:37]} Be5 {[%emt 0:02:38]} 24. Bxg3 {[%emt 0:00:15]} Qxg3 {[%emt 0:00:07]} 25. Nxe6 {[%emt 0:00:30]} Qh2+ {[%emt 0:00:13]} 26. Kf2 {[%emt 0:00:07]} Bg3# {[%emt 0:00:10]} 0-1

[Event "GER-ch Youth-U12 2022"]
[Site "Willingen"]
[Date "2022.06.07"]
[Round "4.16"]
[White "Uyar, Levin"]
[Black "Goldkuhle, Collin"]
[Result "1-0"]
[ECO "B38"]
[WhiteElo "1306"]
[BlackElo "1323"]
[Annotator "NA RC COMBH"]
[PlyCount "100"]
[EventDate "2022.06.05"]
[EventType "swiss"]
[EventRounds "9"]
[EventCountry "GER"]
[SourceTitle "playchess.com"]
[Source "ChessBase"]
[SourceQuality "1"]
[TimeControl "40/4500+30:900+30"]

1. e4 {[%emt 0:00:00]} c5 {[%emt 0:00:00]} 2. Nf3 {[%emt 0:00:00]} Nc6 {[%emt 0:00:00]} 3. d4 {[%emt 0:00:00]} cxd4 {[%emt 0:00:00]} 4. Nxd4 {[%emt 0:00:00]} g6 {[%emt 0:00:00]} 5. c4 {[%emt 0:00:00]} Nf6 {[%emt 0:00:00]} 6. Nc3 {[%emt 0:00:00]} Bg7 {[%emt 0:00:00]} 7. Be3 {[%emt 0:00:00]} O-O {[%emt 0:00:00]} 8. Be2 {[%emt 0:00:00]} d6 {[%emt 0:00:00]} 9. O-O {[%emt 0:00:00]} Bd7 {[%emt 0:00:00]} 10. h3 {[%emt 0:00:00]} Qc8 {[%emt 0:01:10]} 11. Rc1 {[%emt 0:00:00]} Ne5 {[%emt 0:08:38]} 12. Nd5 {[%emt 0:12:45]} Qd8 {[%emt 0:03:34]} 13. f4 {[%emt 0:09:47]} Nc6 {[%emt 0:01:47]} 14. Bf3 {[%emt 0:03:26]} Rc8 {[%emt 0:07:24]} 15. b3 {[%emt 0:02:55]} Ne8 {[%emt 0:18:36]} 16. Nb5 {[%emt 0:16:27]} b6 {[%emt 0:04:13]} 17. Qd2 {[%emt 0:04:34]} Be6 {[%emt 0:03:50]} 18. Qf2 {[%emt 0:04:13]} Qd7 {[%emt 0:03:38]} 19. Rfd1 {[%emt 0:05:17]} f6 {[%emt 0:08:24]} 20. Be2 {[%emt 0:07:55]} Na5 {[%emt 0:00:51]} 21. b4 {[%emt 0:03:19]} Nc6 {[%emt 0:03:05]} 22. a3 {[%emt 0:00:16]} Qb7 {[%emt 0:01:09]} 23. Rb1 {[%emt 0:04:53]} Bxd5 {[%emt 0:02:04]} 24. exd5 {[%emt 0:02:12]} Nb8 {[%emt 0:00:13]} 25. Nd4 {[%emt 0:00:45]} Nc7 {[%emt 0:00:46]} 26. Bf3 {[%emt 0:01:39]} Qa6 {[%emt 0:02:21]} 27. Qa2 {[%emt 0:01:55]} Rfe8 {[%emt 0:01:33]} 28. Re1 {[%emt 0:01:10]} f5 {[%emt 0:02:17]} 29. Kh1 {[%emt 0:01:16]} Nd7 {[%emt 0:01:29]} 30. b5 {[%emt 0:01:03]} Qb7 {[%emt 0:00:37]} 31. Nc6 {[%emt 0:00:36]} Bf6 {[%emt 0:01:35]} 32. Re2 {[%emt 0:00:31]} Nc5 {[%emt 0:00:34]} 33. Qd2 {[%emt 0:01:12]} Kf7 {[%emt 0:02:01]} 34. Rbe1 {[%emt 0:00:18]} Na4 {[%emt 0:01:12]} 35. Bd4 {[%emt 0:00:10]} Bh4 {[%emt 0:01:11]} 36. Bf2 {[%emt 0:00:52]} Bf6 {[%emt 0:00:11]} 37. Bd4 {[%emt 0:00:45]} Bh4 {[%emt 0:00:13]} 38. Rg1 {[%emt 0:00:54]} Nc5 {[%emt 0:00:29]} 39. Qc2 {[%emt 0:00:35]} e6 {[%emt 0:01:23]} 40. dxe6+ {[%emt 0:00:24]} Kf8 {[%emt 0:01:06]} 41. e7+ {[%emt 0:16:08]} Kg8 {[%emt 0:15:40]} 42. g3 {[%emt 0:01:56]} N7e6 {[%emt 0:01:08]} 43. Bxc5 {[%emt 0:00:27]} Bxe7 {[%emt 0:01:37]} 44. Rxe6 {[%emt 0:00:21]} Qd7 {[%emt 0:00:30]} 45. Nxe7+ {[%emt 0:00:20]} Rxe7 {[%emt 0:00:10]} 46. Rxe7 {[%emt 0:00:06]} Qxe7 {[%emt 0:00:05]} 47. Bd5+ {[%emt 0:00:22]} Kf8 {[%emt 0:00:18]} 48. Qc3 {[%emt 0:00:18]} Qc7 {[%emt 0:00:58]} 49. Qf6+ {[%emt 0:00:19]} Ke8 {[%emt 0:00:12]} 50. Re1+ {[%emt 0:00:10]} Kd7 {[%emt 0:00:06]} 1-0

[Event "GER-ch Youth-U12 2022"]
[Site "Willingen"]
[Date "2022.06.07"]
[Round "4.17"]
[White "Aweh, Mads"]
[Black "Limmer, Marco"]
[Result "1-0"]
[ECO "C11"]
[WhiteElo "1438"]
[BlackElo "1825"]
[Annotator "NA RC COMBH"]
[PlyCount "39"]
[EventDate "2022.06.05"]
[EventType "swiss"]
[EventRounds "9"]
[EventCountry "GER"]
[SourceTitle "playchess.com"]
[Source "ChessBase"]
[SourceQuality "1"]
[TimeControl "40/4500+30:900+30"]

1. e4 {[%emt 0:00:00]} e6 {[%emt 0:00:00]} 2. d4 {[%emt 0:00:00]} d5 {[%emt 0:00:00]} 3. Nc3 {[%emt 0:00:00]} Nf6 {[%emt 0:00:00]} 4. e5 {[%emt 0:00:00]} Nfd7 {[%emt 0:00:00]} 5. f4 {[%emt 0:00:00]} c5 {[%emt 0:00:00]} 6. Nf3 {[%emt 0:00:00]} Nc6 {[%emt 0:00:00]} 7. Be3 {[%emt 0:00:00]} cxd4 {[%emt 0:00:00]} 8. Nxd4 {[%emt 0:00:00]} Qb6 {[%emt 0:00:00]} 9. Qd2 {[%emt 0:00:00]} Qxb2 {[%emt 0:00:00]} 10. Rb1 {[%emt 0:02:04]} Qa3 {[%emt 0:00:00]} 11. Ncb5 {[%emt 0:02:27]} Qxa2 {[%emt 0:00:00]} 12. Rc1 {[%emt 0:00:45]} Bb4 {[%emt 0:00:00]} 13. c3 {[%emt 0:01:23]} Qxd2+ {[%emt 0:00:44]} 14. Kxd2 {[%emt 0:00:53]} Ba5 {[%emt 0:02:42]} 15. Ra1 {[%emt 0:02:47]} Bd8 {[%emt 0:04:48]} 16. Nd6+ {[%emt 0:04:14]} Ke7 {[%emt 0:01:12]} 17. Nxc6+ {[%emt 0:05:57]} bxc6 {[%emt 0:00:43]} 18. Rxa7 {[%emt 0:00:29]} Rb8 {[%emt 0:01:42]} 19. Bc5 {[%emt 0:01:43]} Rb2+ {[%emt 0:00:52]} 20. Kc1 {[%emt 0:01:52]} 1-0